fUSD/lending_fUSD_20250607
["ID","MTS","AMOUNT","RATE_DAILY","PERIOD"]
[364879013,1749283925549,-958.247097,0.0002985,7]
[364879014,1749283925560,-150.0,0.00029851,7]
[364879015,1749283925570,-150.0,0.00029851,7]
[364879016,1749283925579,-150.0,0.00029854,7]
[364879017,1749283925589,-150.0,0.00029861,7]
[364879018,1749283925600,-151.0,0.00029861,7]
[364879019,1749283925609,-151.0,0.00029861,7]
[364879020,1749283925619,-218.444879,0.00029861,7]
[364879021,1749283925629,-151.0,0.00029861,7]
[364879022,1749283925639,-151.0,0.00029861,7]
[364879023,1749283925649,-208.266323,0.00029861,7]
[364879024,1749283925659,-151.0,0.00029861,7]
[364879025,1749283925669,-151.0,0.00029861,7]
[364879026,1749283925680,-151.0,0.00029861,7]
[364879027,1749283925690,-151.0,0.00029861,7]
[364879028,1749283925701,-151.0,0.00029861,7]
[364879029,1749283925711,-151.0,0.00029861,7]
[364879030,1749283925722,-151.0,0.00029861,7]
[364879031,1749283925732,-151.0,0.00029861,7]
[364879032,1749283925742,-151.0,0.00029861,7]
[364879033,1749283925752,-151.0,0.00029861,7]
[364879034,1749283925762,-151.0,0.00029861,7]
[364879035,1749283925773,-151.0,0.00029861,7]
[364879036,1749283925783,-181.679148,0.00029861,7]
[364879037,1749283925794,-181.679148,0.00029861,7]
[364879038,1749283925804,-168.82822,0.00029861,7]
[364879039,1749283925814,-168.82822,0.00029861,7]
[364879040,1749283925823,-1930.071585,0.00029861,7]
[364879041,1749283925832,-1930.071585,0.00029861,7]
[364879042,1749283925842,-151.0,0.00029861,7]
[364879043,1749283925851,-153.754553,0.00029861,7]
[364879044,1749283925860,-153.754553,0.00029861,7]
[364879045,1749283925870,-480.0,0.00029861,5]
[364879046,1749283925880,-480.0,0.00029861,5]
[364879047,1749283925891,-3592.23,0.00029861,5]
[364879048,1749283925901,-1821.11,0.00029861,5]
[364879049,1749283925911,-1892.42,0.00029861,5]
[364879050,1749283925921,-1795.02,0.00029861,5]
[364879051,1749283925932,-579.382257,0.00029861,7]
[364879052,1749283925942,-579.382257,0.00029861,7]
[364879053,1749283925952,-636.82,0.00029863,5]
[364879054,1749283925962,-151.0,0.00029863,7]
[364879055,1749283925972,-151.0,0.00029863,7]
[364879056,1749283925981,-151.0,0.00029863,7]
[364879057,1749283925991,-480.0,0.00029863,5]
[364879058,1749283926001,-631.92,0.00029863,5]
[364879059,1749283926011,-480.0,0.00029863,5]
[364879060,1749283926022,-480.0,0.00029863,5]
[364879061,1749283926032,-642.32,0.00029863,5]
[364879062,1749283926042,-1416.8,0.00029863,5]
[364879063,1749283926052,-480.0,0.00029863,5]
[364879064,1749283926062,-480.0,0.00029863,5]
[364879065,1749283926073,-151.0,0.00029863,7]
[364879066,1749283926083,-722.44,0.00029863,5]
[364879067,1749283926093,-658.72,0.00029863,5]
[364879068,1749283926103,-280.007193,0.00029863,7]
[364879069,1749283926113,-480.0,0.00029863,5]
[364879070,1749283926123,-514.07,0.00029863,5]
[364879071,1749283926133,-202.3884,0.00029863,7]
[364879072,1749283926143,-202.3884,0.00029863,7]
[364879073,1749283926153,-1423.16,0.00029863,5]
[364879074,1749283926165,-1954.69,0.00029863,5]
[364879075,1749283926175,-270.465661,0.00029863,7]
[364879076,1749283926185,-667.336566,0.00029863,7]
[364879077,1749283926195,-667.336566,0.00029863,7]
[364879078,1749283926206,-151.0,0.00029863,7]
[364879079,1749283926217,-624.11,0.00029863,5]
[364879080,1749283926227,-480.0,0.00029863,5]
[364879081,1749283926237,-480.0,0.00029863,5]
[364879082,1749283926248,-618.47,0.00029863,5]
[364879083,1749283926258,-1137.84,0.00029863,5]
[364879084,1749283926268,-151.0,0.00029863,7]
[364879085,1749283926279,-1163.74,0.00029863,5]
[364879086,1749283926291,-156.804286,0.00029863,7]
[364879087,1749283926301,-480.0,0.00029863,5]
[364879088,1749283926313,-807.84,0.00029863,5]
[364879089,1749283926323,-1323.94,0.00029863,5]
[364879090,1749283926333,-722.49,0.00029863,5]
[364879091,1749283926344,-1321.048037,0.00029863,7]
[364879092,1749283926354,-1321.048037,0.00029863,7]
[364879093,1749283926370,-1046.98,0.00029863,5]
[364879094,1749283926380,-713.0,0.00029863,5]
[364879095,1749283926391,-548.11,0.00029863,5]
[364879096,1749283926403,-882.53,0.00029863,5]
[364879097,1749283926415,-736.64,0.00029863,5]
[364879098,1749283926425,-151.0,0.00029863,7]
[364879099,1749283926435,-658.07,0.00029863,5]
[364879100,1749283926446,-676.89,0.00029863,5]
[364879101,1749283926456,-611.81,0.00029863,5]
[364879102,1749283926466,-903.48,0.00029863,5]
[364879103,1749283926475,-545.14,0.00029863,5]
[364879104,1749283926486,-1030.91,0.00029863,5]
[364879105,1749283926497,-193.35858586,0.00029863,5]
[364879106,1749283926508,-1787.253615,0.00029863,5]
[364879107,1749283926518,-480.0,0.00029863,5]
[364879108,1749283926528,-652.14,0.00029863,5]
[364879109,1749283926538,-1026.76,0.00029863,5]
[364879110,1749283926547,-573.4,0.00029863,5]
[364879111,1749283926557,-873.46,0.00029863,5]
[364879112,1749283926567,-787.2,0.00029863,5]
[364879113,1749283926578,-1212.38,0.00029863,5]
[364879114,1749283926588,-2102.121321,0.00029863,5]
[364879115,1749283926598,-480.0,0.00029863,5]
[364879116,1749283926607,-480.0,0.00029863,5]
[364879117,1749283926618,-1461.748382,0.00029863,7]
[364879118,1749283926628,-480.0,0.00029863,5]
[364879119,1749283926639,-1461.748382,0.00029863,7]
[364879120,1749283926649,-1174.57,0.00029863,5]
[364879121,1749283926659,-850.33,0.00029863,5]
[364879122,1749283926669,-554.27,0.00029863,5]
[364879123,1749283926679,-737.61,0.00029863,5]
[364879124,1749283926690,-494.24,0.00029863,5]
[364879125,1749283926699,-634.26,0.00029863,5]
[364879126,1749283926709,-835.68,0.00029863,5]
[364879127,1749283926719,-768.49,0.00029863,5]
[364879128,1749283926730,-480.0,0.00029863,5]
[364879129,1749283926739,-528.15,0.00029863,5]
[364879130,1749283926749,-248.105687,0.00029863,7]
[364879131,1749283926759,-1115.25,0.00029863,5]
[364879132,1749283926769,-480.0,0.00029863,5]
[364879133,1749283926779,-248.105687,0.00029863,7]
[364879134,1749283926788,-958.247097,0.00029863,7]
[364879135,1749283926798,-2016.63,0.00029863,5]
[364879136,1749283926808,-958.247097,0.00029863,7]
[364879137,1749283926818,-480.0,0.00029863,5]
[364879138,1749283926827,-480.0,0.00029863,5]
[364879139,1749283926837,-480.0,0.00029863,5]
[364879140,1749283926847,-984.78,0.00029863,5]
[364879141,1749283926856,-1642.080816,0.00029863,7]
[364879142,1749283926866,-956.19,0.00029863,5]
[364879143,1749283926875,-1642.080816,0.00029863,7]
[364879144,1749283926885,-485.39,0.00029863,5]
[364879145,1749283926895,-601.8,0.00029863,5]
[364879146,1749283926904,-798.33,0.00029863,5]
[364879147,1749283926915,-658.43,0.00029863,5]
[364879148,1749283926925,-984.27,0.00029863,5]
[364879149,1749283926935,-853.62,0.00029863,5]
[364879150,1749283926944,-480.0,0.00029863,5]
[364879151,1749283926954,-1719.89,0.00029863,5]
[364879152,1749283926964,-879.54,0.00029863,5]
[364879153,1749283926974,-990.87,0.00029863,5]
[364879154,1749283926984,-769.25,0.00029863,5]
[364879155,1749283926994,-619.63,0.00029863,5]
[364879156,1749283927004,-964.13,0.00029863,5]
[364879157,1749283927014,-614.65,0.00029863,5]
[364879158,1749283927024,-620.08,0.00029863,5]
[364879159,1749283927034,-959.52,0.00029863,5]
[364879160,1749283927044,-481.61,0.00029863,5]
[364879161,1749283927054,-607.29,0.00029863,5]
[364879162,1749283927066,-1150.03,0.00029863,5]
[364879163,1749283927076,-647.25,0.00029863,5]
[364879164,1749283927086,-1086.55,0.00029863,5]
[364879165,1749283927096,-1473.87,0.00029863,5]
[364879166,1749283927106,-7690.81,0.00029863,5]
[364879167,1749283927116,-1206.45,0.00029863,5]
[364879168,1749283927127,-594.14,0.00029863,5]
[364879169,1749283927137,-656.54,0.00029863,5]
[364879170,1749283927149,-665.13,0.00029863,5]
[364879171,1749283927160,-509.24,0.00029863,5]
[364879172,1749283927170,-480.0,0.00029863,5]
[364879173,1749283927180,-867.98,0.00029863,5]
[364879174,1749283927190,-835.03,0.00029863,5]
[364879175,1749283927200,-1091.22,0.00029863,5]
[364879176,1749283927210,-788.44,0.00029863,5]
[364879177,1749283927220,-2181.17,0.00029863,5]
[364879178,1749283927230,-675.89,0.00029863,5]
[364879179,1749283927239,-1342.98,0.00029863,5]
[364879180,1749283927249,-5948.08,0.00029863,5]
[364879181,1749283927259,-748.21,0.00029863,5]
[364879182,1749283927270,-1325.93,0.00029863,5]
[364879183,1749283927279,-6018.65,0.00029863,5]
[364879184,1749283927289,-480.0,0.00029863,5]
[364879185,1749283927299,-622.41,0.00029863,5]
[364879186,1749283927309,-480.0,0.00029863,5]
[364879187,1749283927319,-1345.91,0.00029863,5]
[364879188,1749283927329,-965.47,0.00029863,5]
[364879189,1749283927340,-2147.53,0.00029863,2]
[364879190,1749283927349,-2644.51,0.00029863,5]
[364879191,1749283927360,-2010.42,0.00029863,5]
[364879192,1749283927372,-3264.83,0.00029863,5]
[364879193,1749283927383,-1546.17,0.00029863,5]
[364879194,1749283927393,-2124.13,0.00029863,5]
[364879195,1749283927403,-480.0,0.00029863,5]
[364879196,1749283927413,-3803.92,0.00029863,5]
[364879197,1749283927423,-1458.57,0.00029863,5]
[364879198,1749283927433,-882.95,0.00029863,5]
[364879199,1749283927443,-6110.32,0.00029863,5]
[364879200,1749283927453,-3035.15,0.00029863,5]
[364879201,1749283927549,-1003.3,0.00029863,5]
[364879202,1749283927560,-480.0,0.00029863,5]
[364879203,1749283927569,-1170.49,0.00029863,5]
[364879204,1749283927578,-1274.96118788,0.00029863,5]
[364879205,1749283927912,1590.8,0.00035616,120]
[364879206,1749283927951,-2358.15881212,0.00029863,5]
[364879207,1749283927961,-1513.66,0.00029863,5]
[364879208,1749283927970,-716.75159151,0.00029863,5]
[364879209,1749283928042,1590.8,0.00035616,120]
[364879210,1749283928107,483.29720452,0.00035616,120]
[364879211,1749283928204,1590.8,0.00035616,120]
[364879212,1749283928314,1590.8,0.00035616,120]
[364879213,1749283928416,480.0,0.00035616,120]
[364879214,1749283928494,480.0,0.00035616,120]
[364879215,1749283928564,1590.94539452,0.00035616,120]
[364879216,1749283928667,480.0,0.00035616,120]
[364879217,1749283928963,1440.45,0.00035616,120]
[364879218,1749283929045,564.70409553,0.00035616,120]
[364879219,1749283929136,1440.45,0.00035616,120]
[364879220,1749283929220,1440.45,0.00035616,120]
[364879221,1749283929324,1440.45,0.00035616,120]
[364879222,1749283929473,1440.45,0.00035616,120]
[364879223,1749283929554,1442.32,0.00035616,120]
[364879224,1749283929711,1440.45,0.00035616,120]
[364879225,1749283929814,1440.45,0.00035616,120]
[364879226,1749283929884,480.0,0.00035616,120]
[364879227,1749283929955,1442.32,0.00035616,120]
[364879228,1749283930054,1440.45,0.00035616,120]
[364879229,1749283930132,480.0,0.00035616,120]
[364879230,1749283930208,1442.32,0.00035616,120]
[364879231,1749283930299,1440.45,0.00035616,120]
[364879232,1749283930379,1442.32,0.00035616,120]
[364879233,1749283930530,1442.32,0.00035616,120]
[364879234,1749283930661,1442.32,0.00035616,120]
[364879235,1749283930725,1440.45,0.00035616,120]
[364879236,1749283930796,1442.32,0.00035616,120]
[364879237,1749283930809,-299.73565,0.00019548,2]
[364879238,1749283930821,-3030.91005369,0.00019548,2]
[364879239,1749283930830,-3136.49156055,0.00019548,2]
[364879240,1749283930842,-194.15414314,0.00019548,2]
[364879241,1749283930852,-2592.9234537,0.00019548,2]
[364879242,1749283930918,488.949945,0.00035616,120]
[364879243,1749283930931,-557.11160189,0.00019548,2]
[364879244,1749283930943,-180.6106481,0.00019548,2]
[364879245,1749283930953,-3330.64570369,0.00019548,2]
[364879246,1749283930962,-3330.64570369,0.00019548,2]
[364879247,1749283930972,-3330.64570369,0.00019548,2]
[364879248,1749283930982,-3330.64570369,0.00019548,2]
[364879249,1749283930991,-3330.64570369,0.00019548,2]
[364879250,1749283931001,-3330.64570369,0.00019548,2]
[364879251,1749283931010,-3330.64570369,0.00019548,2]
[364879252,1749283931020,-3330.64570369,0.00019548,2]
[364879253,1749283931029,-3330.64570369,0.00019548,2]
[364879254,1749283931039,-3330.64570369,0.00019548,2]
[364879255,1749283931049,-3330.64570369,0.00019548,2]
[364879256,1749283931059,-3330.64570369,0.00019548,2]
[364879257,1749283931069,-3330.64570369,0.00019548,2]
[364879258,1749283931078,-3330.64570369,0.00019548,2]
[364879259,1749283931087,-3330.64570369,0.00019548,2]
[364879260,1749283931097,-2369.17526917,0.00019548,2]
[364879261,1749283931164,1442.32,0.00035616,120]
[364879262,1749283931303,1442.32,0.00035616,120]
[364879263,1749283931408,1442.32,0.00035616,120]
[364879264,1749283931479,1440.45,0.00035616,120]
[364879265,1749283931541,1442.32,0.00035616,120]
[364879266,1749283931615,1440.45,0.00035616,120]
[364879267,1749283931679,1442.32,0.00035616,120]
[364879268,1749283931747,1440.45,0.00035616,120]
[364879269,1749283931816,1442.32,0.00035616,120]
[364879270,1749283931897,1440.45,0.00035616,120]
[364879271,1749283932008,1442.32,0.00035616,120]
[364879272,1749283932127,1440.45,0.00035616,120]
[364879273,1749283932238,1442.32,0.00035616,120]
[364879274,1749283932368,1440.45,0.00035616,120]
[364879275,1749283932439,1442.32,0.00035616,120]
[364879276,1749283932506,1440.45,0.00035616,120]
[364879277,1749283932581,1440.45,0.00035616,120]
[364879278,1749283932650,1442.32,0.00035616,120]
[364879279,1749283932736,1440.45,0.00035616,120]
[364879280,1749283932799,1442.32,0.00035616,120]
[364879281,1749283932865,1440.45,0.00035616,120]
[364879282,1749283932936,1442.32,0.00035616,120]
[364879283,1749283933000,480.0,0.00035616,120]
[364879284,1749283933067,1440.45,0.00035616,120]
[364879285,1749283933155,1442.32,0.00035616,120]
[364879286,1749283933221,426.84645408,0.00035616,120]
[364879287,1749283933281,1440.45,0.00035616,120]
[364879288,1749283933354,1442.32,0.00035616,120]
[364879289,1749283933420,1440.45,0.00035616,120]
[364879290,1749283933484,1442.32,0.00035616,120]
[364879291,1749283933622,1442.32,0.00035616,120]
[364879292,1749283933691,1440.45562051,0.00035616,120]
[364879293,1749283933753,1442.54221459,0.00035616,120]
[364879294,1749283934303,480.0,0.00035616,120]
[364879295,1749283934459,446.59940288,0.00035616,120]
[364879296,1749283934694,480.0,0.00035616,120]
[364879297,1749283934762,480.0,0.00035616,120]
[364879298,1749283934845,480.0,0.00035616,120]
[364879299,1749283935191,480.0,0.00035616,120]
[364879300,1749283935351,480.0,0.00035616,120]
[364879301,1749283935443,480.0,0.00035616,120]
[364879302,1749283935521,480.0,0.00035616,120]
[364879303,1749283935618,1788.9,0.00035616,120]
[364879304,1749283935691,480.0,0.00035616,120]
[364879305,1749283935805,480.0,0.00035616,120]
[364879306,1749283935874,1246.0,0.0003561,120]
[364879307,1749283935940,297.2,0.00035616,120]
[364879308,1749283936362,1788.9,0.00035616,120]
[364879309,1749283936462,1788.9,0.00035616,120]
[364879310,1749283936559,1788.9,0.00035616,120]
[364879311,1749283936637,549.32840579,0.00035616,120]
[364879312,1749283936726,1788.9,0.00035616,120]
[364879313,1749283936875,207.0395654,0.00035616,120]
[364879314,1749283936959,1788.9,0.00035616,120]
[364879315,1749283937049,1788.9,0.00035616,120]
[364879316,1749283937129,623.05,0.00035616,120]
[364879317,1749283937197,1788.9,0.00035616,120]
[364879318,1749283937272,623.05,0.00035616,120]
[364879319,1749283937362,1788.9,0.00035616,120]
[364879320,1749283937438,623.05,0.00035616,120]
[364879321,1749283937512,1788.9,0.00035616,120]
[364879322,1749283937575,623.05,0.00035616,120]
[364879323,1749283937641,1788.9,0.00035616,120]
[364879324,1749283937711,407.42693088,0.00035616,120]
[364879325,1749283937772,623.05,0.00035616,120]
[364879326,1749283937843,1788.9,0.00035616,120]
[364879327,1749283937908,623.05,0.00035616,120]
[364879328,1749283938203,1788.9,0.00035616,120]
[364879329,1749283938268,480.0,0.00035616,120]
[364879330,1749283938331,623.05,0.00035616,120]
[364879331,1749283938401,1788.9,0.00035616,120]
[364879332,1749283938522,623.05,0.00035616,120]
[364879333,1749283938769,1788.9,0.00035616,120]
[364879334,1749283938844,623.05,0.00035616,120]
[364879335,1749283938920,1788.9,0.00035616,120]
[364879336,1749283938989,623.05,0.00035616,120]
[364879337,1749283939066,485.65283659,0.00035616,120]
[364879338,1749283939140,1788.9,0.00035616,120]
[364879339,1749283939227,623.05,0.00035616,120]
[364879340,1749283939322,1788.9,0.00035616,120]
[364879341,1749283939413,623.05,0.00035616,120]
[364879342,1749283939483,1788.9,0.00035616,120]
[364879343,1749283939552,623.05,0.00035616,120]
[364879344,1749283939638,1788.9,0.00035616,120]
[364879345,1749283939714,623.05,0.00035616,120]
[364879346,1749283939785,1788.9,0.00035616,120]
[364879347,1749283939854,623.05,0.00035616,120]
[364879348,1749283940009,1788.9,0.00035616,120]
[364879349,1749283940083,623.05,0.00035616,120]
[364879350,1749283940154,1788.9,0.00035616,120]
[364879351,1749283940224,623.05,0.00035616,120]
[364879352,1749283940289,1789.03885076,0.00035616,120]
[364879353,1749283940361,623.05,0.00035616,120]
[364879354,1749283940443,623.05,0.00035616,120]
[364879355,1749283940511,480.0,0.00035616,120]
[364879356,1749283940583,623.05,0.00035616,120]
[364879357,1749283940662,480.0,0.00035616,120]
[364879358,1749283940729,585.52,0.00035616,120]
[364879359,1749283940805,623.05,0.00035616,120]
[364879360,1749283940879,585.52,0.00035616,120]
[364879361,1749283940945,623.05,0.00035616,120]
[364879362,1749283941014,585.52,0.00035616,120]
[364879363,1749283941088,623.05,0.00035616,120]
[364879364,1749283941155,585.52,0.00035616,120]
[364879365,1749283941225,623.20028027,0.00035616,120]
[364879366,1749283941291,480.0,0.00035616,120]
[364879367,1749283941361,585.52,0.00035616,120]
[364879368,1749283941445,8194.39,0.00035616,120]
[364879369,1749283941517,480.0,0.00035616,120]
[364879370,1749283941589,480.0,0.00035616,120]
[364879371,1749283941661,585.52,0.00035616,120]
[364879372,1749283941734,480.0,0.00035616,120]
[364879373,1749283941797,480.0,0.00035616,120]
[364879374,1749283941858,585.52,0.00035616,120]
[364879375,1749283941946,480.0,0.00035616,120]
[364879376,1749283942006,585.52,0.00035616,120]
[364879377,1749283942071,8194.39,0.00035616,120]
[364879378,1749283942142,480.0,0.00035616,120]
[364879379,1749283942219,480.0,0.00035616,120]
[364879380,1749283942280,585.52,0.00035616,120]
[364879381,1749283942339,476.46498868,0.00035616,120]
[364879382,1749283942406,8194.39,0.00035616,120]
[364879383,1749283942532,480.0,0.00035616,120]
[364879384,1749283942611,585.52,0.00035616,120]
[364879385,1749283942684,480.0,0.00035616,120]
[364879386,1749283942766,480.0,0.00035616,120]
[364879387,1749283942829,585.52,0.00035616,120]
[364879388,1749283942897,8194.39,0.00035616,120]
[364879389,1749283942959,480.0,0.00035616,120]
[364879390,1749283943034,585.52,0.00035616,120]
[364879391,1749283943097,8194.39,0.00035616,120]
[364879392,1749283943164,585.52,0.00035616,120]
[364879393,1749283943232,480.0,0.00035616,120]
[364879394,1749283943303,8194.39,0.00035616,120]
[364879395,1749283943366,480.0,0.00035616,120]
[364879396,1749283944171,585.52,0.00035616,120]
[364879397,1749283944248,338.81397896,0.00035616,120]
[364879398,1749283944339,8194.39,0.00035616,120]
[364879399,1749283944452,585.52,0.00035616,120]
[364879400,1749283944524,8194.39,0.00035616,120]
[364879401,1749283944614,585.52,0.00035616,120]
[364879402,1749283944684,480.0,0.00035616,120]
[364879403,1749283944809,585.52,0.00035616,120]
[364879404,1749283944875,480.0,0.00035616,120]
[364879405,1749283944945,480.0,0.00035616,120]
[364879406,1749283945016,480.0,0.00035616,120]
[364879407,1749283945085,585.52,0.00035616,120]
[364879408,1749283945154,8194.39,0.00035616,120]
[364879409,1749283945221,480.0,0.00035616,120]
[364879410,1749283945287,480.0,0.00035616,120]
[364879411,1749283945354,585.52,0.00035616,120]
[364879412,1749283945429,8194.39,0.00035616,120]
[364879413,1749283945494,494.31641614,0.00035616,120]
[364879414,1749283945558,480.0,0.00035616,120]
[364879415,1749283945669,585.52,0.00035616,120]
[364879416,1749283945798,8194.39,0.00035616,120]
[364879417,1749283945868,480.0,0.00035616,120]
[364879418,1749283945935,8194.39,0.00035616,120]
[364879419,1749283945998,480.0,0.00035616,120]
[364879420,1749283946063,480.0,0.00035616,120]
[364879421,1749283946126,585.52,0.00035616,120]
[364879422,1749283946195,8194.39,0.00035616,120]
[364879423,1749283946259,480.0,0.00035616,120]
[364879424,1749283946326,480.0,0.00035616,120]
[364879425,1749283946454,585.52,0.00035616,120]
[364879426,1749283946519,8194.39,0.00035616,120]
[364879427,1749283946587,480.0,0.00035616,120]
[364879428,1749283946650,382.98,0.00035616,120]
[364879429,1749283946715,585.52,0.00035616,120]
[364879430,1749283946778,8194.39,0.00035616,120]
[364879431,1749283946840,480.0,0.00035616,120]
[364879432,1749283946967,585.61082066,0.00035616,120]
[364879433,1749283947032,8194.39,0.00035616,120]
[364879434,1749283947100,480.0,0.00035616,120]
[364879435,1749283947168,8194.39,0.00035616,120]
[364879436,1749283947231,480.0,0.00035616,120]
[364879437,1749283947314,480.0,0.00035616,120]
[364879438,1749283947393,8194.39,0.00035616,120]
[364879439,1749283947465,480.0,0.00035616,120]
[364879440,1749283947533,1097.49,0.00035616,120]
[364879441,1749283947601,8194.39,0.00035616,120]
[364879442,1749283947663,185.13,0.00035616,120]
[364879443,1749283947729,480.0,0.00035616,120]
[364879444,1749283947788,1097.49,0.00035616,120]
[364879445,1749283947854,8194.39,0.00035616,120]
[364879446,1749283947915,258.65,0.00035616,120]
[364879447,1749283948036,1097.49,0.00035616,120]
[364879448,1749283948099,1097.49,0.00035616,120]
[364879449,1749283948487,480.0,0.00035616,120]
[364879450,1749283948551,8194.39,0.00035616,120]
[364879451,1749283948615,480.0,0.00035616,120]
[364879452,1749283948682,1097.49,0.00035616,120]
[364879453,1749283948747,480.0,0.00035616,120]
[364879454,1749283949045,8194.39,0.00035616,120]
[364879455,1749283949115,1097.49,0.00035616,120]
[364879456,1749283949175,483.29393376,0.00035616,120]
[364879457,1749283949236,365.93,0.00035616,120]
[364879458,1749283949314,1097.49,0.00035616,120]
[364879459,1749283949436,1097.49,0.00035616,120]
[364879460,1749283949500,1427.01,0.00035616,120]
[364879461,1749283949573,8194.39,0.00035616,120]
[364879462,1749283949653,1097.49,0.00035616,120]
[364879463,1749283949716,1427.01,0.00035616,120]
[364879464,1749283949778,8194.57205227,0.00035616,120]
[364879465,1749283949842,480.0,0.00035616,120]
[364879466,1749283949905,1427.01,0.00035616,120]
[364879467,1749283949972,1097.49,0.00035616,120]
[364879468,1749283950035,1427.01,0.00035616,120]
[364879469,1749283950100,1097.49,0.00035616,120]
[364879470,1749283950217,1427.01,0.00035616,120]
[364879471,1749283950277,1097.49,0.00035616,120]
[364879472,1749283950335,1427.01,0.00035616,120]
[364879473,1749283950394,1097.49,0.00035616,120]
[364879474,1749283950457,1427.01,0.00035616,120]
[364879475,1749283950521,1097.49,0.00035616,120]
[364879476,1749283950602,1427.01,0.00035616,120]
[364879477,1749283950670,1097.49,0.00035616,120]
[364879478,1749283950805,1427.01,0.00035616,120]
[364879479,1749283950869,1097.49,0.00035616,120]
[364879480,1749283950954,1427.01,0.00035616,120]
[364879481,1749283951019,1097.49,0.00035616,120]
[364879482,1749283951104,1427.01,0.00035616,120]
[364879483,1749283951167,1097.49,0.00035616,120]
[364879484,1749283951242,1427.01,0.00035616,120]
[364879485,1749283951303,1097.49,0.00035616,120]
[364879486,1749283951405,1427.01,0.00035616,120]
[364879487,1749283951475,1097.49,0.00035616,120]
[364879488,1749283951574,1427.01,0.00035616,120]
[364879489,1749283951656,1097.49,0.00035616,120]
[364879490,1749283951720,1427.01,0.00035616,120]
[364879491,1749283951782,1097.49,0.00035616,120]
[364879492,1749283951845,480.0,0.00035616,120]
[364879493,1749283951959,1097.49,0.00035616,120]
[364879494,1749283952039,1427.01,0.00035616,120]
[364879495,1749283952161,1097.64728521,0.00035616,120]
[364879496,1749283952226,1427.01,0.00035616,120]
[364879497,1749283952298,490.41264568,0.00035616,120]
[364879498,1749283952362,1427.01,0.00035616,120]
[364879499,1749283952442,1427.01,0.00035616,120]
[364879500,1749283952565,1427.01,0.00035616,120]
[364879501,1749283952629,1427.01,0.00035616,120]
[364879502,1749283952704,480.0,0.00035616,120]
[364879503,1749283952772,1427.01,0.00035616,120]
[364879504,1749283952930,1427.01,0.00035616,120]
[364879505,1749283953001,1427.09534786,0.00035616,120]
[364879506,1749283953359,518.65,0.00035616,120]
[364879507,1749283953432,480.0,0.00035616,120]
[364879508,1749283953505,488.26239483,0.00035616,120]
[364879509,1749283953569,480.0,0.00035616,120]
[364879510,1749283953695,210.49,0.00035616,120]
[364879511,1749283954204,480.0,0.00035616,120]
[364879512,1749283954292,480.0,0.00035616,120]